bitfinex-derivatives/quotes_ETHF0:USTF0_20250606
["timestamp","ask_amount","ask_price","bid_price","bid_amount"]
[1749179595702,0.07133351,2430.0,2429.9,5.138]
[1749179597204,0.07133351,2430.0,2429.5,0.00617576]
[1749179597205,0.82287,2429.6,2429.5,0.00617576]
[1749179597405,3.2078,2429.6,2429.5,0.00617576]
[1749179597709,5.30328946,2429.6,2429.5,0.00617576]
[1749179598206,5.30300454,2429.6,2429.5,0.00617576]
[1749179599401,5.30302339,2429.6,2429.5,0.00617576]
[1749179599607,4.03067,2429.6,2429.5,0.00617576]
[1749179600506,3.2078,2429.6,2429.5,0.00617576]
[1749179600702,0.82287,2429.6,2429.5,0.00617576]
[1749179600902,0.82285,2429.7,2429.5,0.00617576]
[1749179601108,0.89420351,2429.6,2429.5,0.00617576]
[1749179602308,0.07133351,2429.6,2429.5,0.00617576]
[1749179604106,0.07133351,2429.6,2429.5,5.14417576]
[1749179605212,0.89420351,2429.6,2429.5,5.14417576]
[1749179605812,0.07133351,2429.6,2429.5,5.14417576]
[1749179606204,0.89420351,2429.6,2429.5,5.14417576]
[1749179606601,0.07133351,2429.6,2429.5,5.14417576]
[1749179606807,0.00617576,2429.8,2429.7,0.82284]
[1749179607810,0.00617576,2429.8,2429.5,7.10517576]
[1749179608003,0.00617576,2429.8,2429.5,5.82827576]
[1749179608209,0.07133351,2429.6,2429.5,0.00617576]
[1749179608410,0.74053351,2429.6,2429.5,5.96808576]
[1749179610510,0.74053351,2429.6,2429.5,0.00617576]
[1749179610709,0.74053351,2429.6,2429.5,5.96108576]
[1749179610916,0.07133351,2429.6,2429.5,5.96108576]
[1749179612217,5.24187576,2429.8,2429.6,0.82287]
[1749179613222,0.07133351,2429.7,2429.6,0.82287]
[1749179614216,5.24187576,2429.8,2429.6,0.82287]
[1749179614918,5.24187576,2429.8,2429.7,0.82284]
[1749179616416,5.24187576,2429.8,2429.6,1.51725]
[1749179616621,5.24187576,2429.8,2429.7,0.82284]
[1749179617615,3.21397576,2429.8,2429.7,0.82284]
[1749179617819,0.00617576,2429.8,2429.7,0.82284]
[1749179618216,2.6417,2430.0,2429.9,0.82277]
[1749179618418,2.6417,2430.0,2429.9,5.95477]
[1749179618721,0.4344,2430.1,2430.0,0.82274]
[1749179619618,0.4344,2430.1,2429.9,5.95475]
[1749179619822,4.03047,2430.2,2429.9,5.95475]
[1749179620022,0.6771,2430.0,2429.9,5.95475]
[1749179620528,3.2078,2430.2,2430.1,0.82271]
[1749179621624,3.2078,2430.2,2430.0,1.46282]
[1749179622218,3.2078,2430.2,2430.1,0.82271]
[1749179622721,3.2078,2430.2,2430.0,1.46282]
[1749179622927,4.5603,2430.2,2430.0,1.46282]
[1749179625126,4.5603,2430.2,2430.0,0.82273]
[1749179625527,4.5603,2430.2,2429.9,5.132]
[1749179625528,3.2078,2430.2,2430.1,0.82271]
[1749179625723,3.2078,2430.2,2430.0,0.82272]
[1749179626023,3.2078,2430.2,2430.1,0.82271]
[1749179627426,3.2078,2430.2,2430.0,0.82272]
[1749179628221,3.2078,2430.2,2430.1,0.82271]
[1749179628528,3.55672184,2431.1,2429.9,5.132]
[1749179628529,3.2078,2431.3,2430.0,3.2078]
[1749179628729,2.66321751,2431.2,2430.4,2.05652]
[1749179628923,1.27371751,2431.1,2430.5,7.1741]
[1749179629227,1.27371751,2431.0,2430.7,0.82248]
[1749179629530,3.2078,2431.0,2430.6,0.82253]
[1749179629715,1.3202,2430.9,2430.7,0.8225]
[1749179629921,0.00617576,2431.1,2430.9,0.82243]
[1749179630224,0.00617576,2431.1,2431.0,5.9534]
[1749179631122,3.2784,2431.4,2431.3,0.8223]
[1749179631315,2.6424,2431.4,2431.3,0.8223]
[1749179631522,3.2078,2432.0,2431.3,5.0]
[1749179631726,1.3953,2431.9,2431.5,0.8222]
[1749179631920,2.0313,2431.9,2431.4,7.1501]
[1749179632219,2.03537405,2431.9,2431.6,0.82218]
[1749179632421,2.03537405,2431.9,2431.7,0.82214]
[1749179632632,2.03537405,2431.9,2431.8,5.13]
[1749179633226,2.03537405,2431.9,2431.8,5.95213]
[1749179633424,0.64007405,2431.9,2431.8,5.95213]
[1749179634026,0.00407405,2431.9,2431.8,5.95213]
[1749179634219,3.9043,2432.4,2432.1,0.82202]
[1749179634530,5.2996,2432.4,2432.2,5.13]
[1749179634729,5.2996,2432.4,2432.3,5.13]
[1749179636226,6.12153,2432.4,2432.3,5.13]
[1749179636823,0.82199,2432.2,2432.1,5.13517576]
[1749179637024,0.82199,2432.2,2432.1,0.00617576]
[1749179637225,5.82199,2432.2,2432.1,0.00617576]
[1749179639330,0.82216,2431.7,2431.6,24.88]
[1749179639630,4.02996,2431.7,2431.6,30.009]
[1749179640028,4.02996,2431.7,2431.6,30.008]
[1749179640229,3.2078,2431.7,2431.6,30.008]
[1749179640729,4.02996,2431.7,2431.6,30.008]
[1749179641325,5.29956,2431.7,2431.6,30.008]
[1749179641724,1.50235,2431.8,2431.6,30.008]
[1749179641928,0.00617576,2431.9,2431.6,30.008]
[1749179641929,0.00617576,2431.9,2431.7,0.82215]
[1749179642329,0.82827576,2431.9,2431.6,30.83018]
[1749179642537,0.00617576,2431.9,2431.6,30.008]
[1749179642739,0.82215,2431.8,2431.6,30.008]
[1749179643230,0.00617576,2431.9,2431.6,30.8302]
[1749179643435,0.82828576,2431.9,2431.7,0.6378]
[1749179643834,0.82213,2431.8,2431.7,0.6378]
[1749179644028,0.82216,2431.7,2431.6,24.88]
[1749179644232,0.82216,2431.7,2431.6,30.001]
[1749179647334,0.82216,2431.7,2431.6,24.88]
[1749179647540,5.37826,2431.7,2431.6,30.001]
[1749179647940,5.37826,2431.7,2431.6,24.88]
[1749179648138,5.37826,2431.7,2431.6,30.001]
[1749179648434,1.85593351,2431.8,2431.6,30.001]
[1749179648642,1.85593351,2431.8,2431.7,1.51586]
[1749179648836,1.85593351,2431.8,2431.7,0.6937]
[1749179649036,1.85593351,2431.8,2431.7,5.8147]
[1749179649238,1.85593351,2431.8,2431.7,6.63686]
[1749179649440,1.85593351,2431.8,2431.7,2.80896]
[1749179649634,0.82222,2431.6,2431.4,0.64397576]
[1749179649838,4.03003,2431.5,2431.4,0.00617576]
[1749179650029,4.67403,2431.5,2431.4,5.12717576]
[1749179650652,4.67403,2431.5,2431.4,0.00617576]
[1749179650848,0.8223,2431.3,2431.2,5.121]
[1749179651053,0.82243,2430.9,2430.8,24.871]
[1749179651255,4.03023,2430.9,2430.8,29.992]
[1749179652159,4.03023,2430.9,2430.8,5.121]
[1749179653662,0.8225,2430.7,2430.6,0.00617576]
[1749179654159,7.08325824,2430.7,2430.6,0.00617576]
[1749179654353,8.36595824,2430.7,2430.6,0.00617576]
[1749179656763,8.36595824,2430.7,2430.6,5.76e-06]
[1749179657556,0.82257,2430.5,2430.4,4.19982576]
[1749179657758,0.82257,2430.5,2429.8,24.873]
[1749179657759,0.82277,2429.9,2429.8,24.873]
[1749179658058,4.03057,2429.9,2429.8,24.873]
[1749179658263,4.03057,2429.9,2429.8,29.995]
[1749179658658,4.03057,2429.9,2429.8,24.873]
[1749179658856,4.03057,2429.9,2429.8,29.995]
[1749179659057,4.03057,2429.9,2429.6,0.00617576]
[1749179659058,0.82284,2429.7,2429.6,0.00617576]
[1749179659258,0.82284,2429.7,2429.6,5.12817576]
[1749179661561,0.82301,2429.2,2429.1,24.878]
[1749179661760,0.82301,2429.2,2429.0,0.6317]
[1749179661761,0.82304,2429.1,2429.0,0.6317]
[1749179662060,4.03082,2429.2,2429.0,5.7547]
[1749179662257,0.82304,2429.1,2429.0,5.7547]
[1749179664160,4.03084,2429.1,2429.0,5.7547]
[1749179669069,4.03084,2429.1,2429.0,5.123]
[1749179669962,4.03084,2429.1,2428.8,0.68957576]
[1749179669963,0.82311,2428.9,2428.8,0.68957576]
[1749179670163,0.82311,2428.9,2428.8,5.81457576]
[1749179670664,0.82311,2428.9,2428.8,0.68957576]
[1749179670866,0.82311,2428.9,2428.8,5.12617576]
[1749179674559,3.2078,2429.1,2428.8,5.12617576]
[1749179674767,0.82311,2428.9,2428.8,5.12617576]
[1749179675267,0.82311,2428.9,2428.8,0.00617576]
[1749179675468,0.82311,2428.9,2428.8,5.12717576]
[1749179675664,2.60971,2428.9,2428.8,5.12717576]
[1749179676960,2.60971,2428.9,2428.8,0.00617576]
[1749179677161,2.60971,2428.9,2428.8,5.12717576]
[1749179682669,3.86596805,2428.9,2428.8,5.12717576]
[1749179686076,3.04285805,2428.9,2428.8,5.12717576]
[1749179686375,3.86596805,2428.9,2428.8,5.12717576]
[1749179687673,3.04285805,2428.9,2428.8,5.95032576]
[1749179689068,3.04708702,2428.9,2428.8,5.95032576]
[1749179690674,3.04708702,2428.9,2428.8,10.95032576]
[1749179691077,3.04708702,2428.9,2428.8,14.15812576]
[1749179691271,3.04708702,2428.9,2428.8,15.47532576]
[1749179692376,3.11842053,2428.9,2428.8,15.47532576]
[1749179692777,3.11842053,2428.9,2428.8,34.74632576]
[1749179693278,1.85793351,2428.9,2428.8,34.74632576]
[1749179695182,1.85793351,2428.9,2428.8,35.65432576]
[1749179696486,1.85793351,2428.9,2428.8,30.65432576]
[1749179699486,1.85793351,2428.9,2428.8,30.64932576]
[1749179700488,7.142122,2428.9,2428.8,5.12717576]
[1749179700688,9.781722,2428.9,2428.8,5.12717576]
[1749179700887,7.636912,2428.9,2428.8,5.12717576]
[1749179701088,7.636912,2428.9,2428.8,5.95032576]
[1749179701290,7.636912,2428.9,2428.8,5.12717576]
[1749179701590,7.56557849,2428.9,2428.8,5.95032576]
[1749179702089,7.56557849,2428.9,2428.8,5.12717576]
[1749179702287,7.56557849,2428.9,2428.8,5.95032576]
[1749179703692,7.56557849,2428.9,2428.8,5.12717576]
[1749179704392,8.38868849,2428.9,2428.8,5.12717576]
[1749179704582,8.91907849,2428.9,2428.8,5.12717576]
[1749179704982,8.25907849,2428.9,2428.8,5.12717576]
[1749179705188,2.1456,2429.0,2428.9,0.82311]
[1749179705793,2.1456,2429.0,2428.9,5.93711]
[1749179708698,2.1456,2429.0,2428.9,0.82311]
[1749179708699,4.1627,2429.0,2428.9,0.82311]
[1749179708900,4.1627,2429.0,2428.9,5.93711]
[1749179710698,4.1627,2429.0,2428.9,0.82311]
[1749179711002,4.1627,2429.0,2428.9,5.93711]
[1749179720113,2.8325,2429.0,2428.9,5.93711]
[1749179721306,2.1456,2429.0,2428.9,5.93711]
[1749179721511,2.1456,2429.0,2428.9,9.14491]
[1749179721717,2.21693351,2429.0,2428.9,9.14491]
[1749179723814,2.1456,2429.0,2428.9,9.14491]
[1749179725520,2.1456,2429.0,2428.9,10.42281]
[1749179725719,1.3796,2429.4,2429.0,0.82308]
[1749179725912,1.3796,2429.4,2429.3,0.82298]
[1749179726117,1.3796,2429.4,2429.3,5.93698]
[1749179726617,4.6003,2429.6,2429.5,0.82291]
[1749179728721,4.4931,2429.9,2429.8,0.82281]
[1749179728926,0.00617576,2430.1,2430.0,0.82274]
[1749179729627,0.00617576,2430.1,2430.0,5.93574]
[1749179730123,0.00617576,2430.1,2430.0,5.113]
[1749179730528,0.00617576,2430.1,2430.0,5.93574]
[1749179735026,0.07750927,2430.1,2430.0,5.93574]
[1749179735231,0.07750927,2430.1,2430.0,0.82274]
[1749179735426,0.07750927,2430.1,2430.0,5.92674]
[1749179736325,0.07750927,2430.1,2430.0,0.82274]
[1749179736624,3.28530927,2430.1,2430.0,5.92674]
[1749179738123,0.07750927,2430.1,2430.0,5.92674]
[1749179738820,0.07750927,2430.1,2430.0,0.82274]
[1749179739025,3.28530927,2430.1,2430.0,5.92674]
[1749179739229,0.07750927,2430.1,2430.0,0.82274]
[1749179739430,3.28530927,2430.1,2430.0,5.92674]
[1749179740122,0.07750927,2430.1,2430.0,5.92674]
[1749179740522,3.28530927,2430.1,2430.0,5.92674]
[1749179741026,0.07750927,2430.1,2430.0,5.92674]
[1749179742031,3.28377661,2431.8,2430.0,14.08594459]
[1749179742234,1.21784422,2431.7,2431.6,0.8222]
[1749179742529,1.21784422,2431.7,2431.4,3.2078]
[1749179742530,1.2871,2431.7,2431.3,5.104]
[1749179742731,1.2871,2431.7,2431.0,5.104]
[1749179742732,3.2078,2431.5,2431.0,5.104]
[1749179742929,1.2871,2431.4,2431.0,5.104]
[1749179743135,0.6572,2431.3,2431.0,5.11017576]
[1749179743332,1.2871,2431.2,2431.0,5.11017576]
[1749179743535,3.2078,2432.2,2431.7,0.82215]
[1749179743837,3.2078,2432.1,2431.1,2.0156]
[1749179744024,1.2871,2432.0,2431.5,0.82221]
[1749179744226,1.2871,2432.0,2431.6,0.82219]
[1749179744427,1.2871,2432.0,2431.7,5.104]
[1749179744627,0.82167,2433.2,2432.4,0.82192]
[1749179744829,3.6225325,2433.4,2431.8,28.0908]
[1749179744830,1.3098,2433.0,2432.6,3.2078]
[1749179745031,1.3098,2433.0,2432.7,5.103]
[1749179745632,4.40147258,2432.9,2431.8,0.6526]
[1749179745839,3.2078,2432.0,2431.8,0.6526]
[1749179746032,3.2078,2432.0,2431.7,5.103]
[1749179746335,3.2078,2432.4,2431.7,5.103]
[1749179746531,4.02986,2432.0,2431.4,0.6526]
[1749179746732,1.3098,2431.9,2431.5,0.00617576]
[1749179746928,1.3098,2431.9,2431.5,5.10917576]
[1749179746929,4.02998,2431.7,2431.5,5.10917576]
[1749179747231,1.3098,2431.6,2431.5,5.10917576]
[1749179747632,7.7906,2431.6,2431.5,5.10917576]
[1749179747932,6.9684,2431.6,2431.2,5.102]
[1749179748138,3.2078,2431.3,2431.2,5.102]
[1749179748633,5.9413,2431.3,2431.2,5.102]
[1749179748833,0.82237,2431.1,2431.0,0.00617576]
[1749179751830,5.82237,2431.1,2431.0,0.00617576]
[1749179752327,0.82237,2431.1,2431.0,0.00617576]
[1749179753734,0.82237,2431.1,2431.0,5.76e-06]
[1749179754032,0.82247,2430.8,2430.7,4.25512576]
[1749179754237,3.2078,2430.8,2430.3,5.102]
[1749179754439,1.9172,2430.7,2430.3,5.102]
[1749179754635,0.8226,2430.4,2430.3,5.102]
[1749179755835,0.00617576,2430.6,2430.3,8.3098]
[1749179756141,0.82259,2430.5,2430.3,5.102]
[1749179756532,0.8226,2430.4,2430.3,5.102]
[1749179756737,0.8226,2430.4,2430.3,8.3098]
[1749179757035,0.8226,2430.4,2430.3,5.102]
[1749179757337,0.8226,2430.4,2430.3,8.3098]
[1749179757533,0.8226,2430.4,2430.3,5.102]
[1749179758427,0.8226,2430.4,2430.3,8.3098]
[1749179758631,0.8226,2430.4,2430.3,5.102]
[1749179760235,0.00617576,2430.6,2430.3,5.102]
[1749179760434,0.00617576,2430.6,2430.3,8.3098]
[1749179760435,0.8226,2430.5,2430.3,8.3098]
[1749179760838,0.8226,2430.5,2430.4,1.9946]
[1749179761230,0.8226,2430.5,2430.4,0.6988]
[1749179761438,0.8226,2430.5,2430.4,3.9066]
[1749179761739,6.57406,2430.9,2430.4,3.9066]
[1749179761740,0.07133351,2431.3,2430.6,0.82252]
[1749179761936,0.82246,2430.9,2430.7,8.9473]
[1749179762135,0.07133351,2431.3,2430.8,4.5036]
[1749179762331,0.07133351,2431.3,2431.0,3.2078]
[1749179762535,0.07133351,2431.3,2430.9,0.6683]
[1749179762846,0.82247,2430.8,2430.7,5.7395]
[1749179763142,0.82257,2430.5,2430.4,3.2078]
[1749179763345,0.82257,2430.5,2430.4,8.4708]
[1749179763529,0.82257,2430.5,2430.4,9.7336]
[1749179763737,0.8225,2430.7,2430.4,15.55619]
[1749179764039,3.3432,2431.2,2430.4,9.7336]
[1749179764230,0.82254,2430.7,2430.4,6.5258]
[1749179764432,0.8225,2430.7,2430.6,3.2078]
[1749179764939,0.82257,2430.5,2430.4,6.5258]
[1749179765132,0.82257,2430.5,2430.4,9.7336]
[1749179765335,0.89390351,2430.5,2430.4,9.7336]
[1749179765839,0.07133351,2430.5,2430.4,9.7336]
[1749179766639,0.89390351,2430.5,2430.4,9.7336]
[1749179767142,0.07133351,2430.5,2430.4,9.7336]
[1749179767333,0.89390351,2430.5,2430.4,9.7336]
[1749179767533,0.07133351,2430.5,2430.4,9.7336]
[1749179768145,0.89390351,2430.5,2430.4,9.7336]
[1749179768642,0.07133351,2430.5,2430.4,9.7336]
[1749179769039,2.05524,2432.0,2430.4,14.7336]
[1749179769236,2.05524,2432.0,2431.2,3.2078]
[1749179769237,2.69273,2431.6,2431.2,3.2078]
[1749179769436,2.69273,2431.6,2431.0,5.263]
[1749179769437,3.2078,2431.5,2431.0,5.263]
[1749179769637,0.82238,2431.1,2431.0,5.263]
[1749179770839,0.82237,2431.1,2431.0,5.263]
[1749179771744,4.03017,2431.1,2431.0,5.263]
[1749179771949,0.8224,2431.0,2430.9,5.263]
[1749179772148,2.0827,2431.0,2430.9,5.263]
[1749179773145,0.8224,2431.0,2430.9,5.263]
[1749179773346,0.82238,2431.1,2430.9,5.263]
[1749179774049,0.8224,2431.0,2430.9,5.263]
[1749179774953,0.82239,2431.1,2430.9,5.263]
[1749179775247,0.00617576,2431.4,2430.9,5.263]
[1749179775446,2.05161805,2431.3,2431.2,3.2078]
[1749179775646,0.8223,2431.3,2431.2,8.4698]
[1749179778255,0.8223,2431.3,2431.2,3.2078]
[1749179778547,3.33265304,2431.3,2431.2,8.4698]
[1749179779148,2.1024,2431.3,2431.2,8.4698]
[1749179779657,2.17373351,2431.3,2431.2,8.4698]
[1749179781845,0.07133351,2431.3,2431.2,14.29213]
[1749179782053,0.07133351,2431.3,2431.2,9.29213]
[1749179782257,0.07133351,2431.3,2431.2,3.8785]
[1749179782458,0.89363351,2431.3,2431.2,9.1405]
[1749179782752,0.07133351,2431.3,2431.2,9.1405]
[1749179783152,0.89363351,2431.3,2431.2,9.1405]
[1749179784056,0.07133351,2431.3,2431.2,9.1405]
[1749179784457,0.07133351,2431.3,2431.2,9.96283]
[1749179784651,0.00617576,2431.4,2431.2,9.1405]
[1749179784853,0.00617576,2431.4,2431.2,9.96282]
[1749179785052,0.00617576,2431.4,2431.2,9.1405]
[1749179785249,0.8223,2431.3,2431.2,3.8785]
[1749179785455,0.8223,2431.3,2431.2,9.1405]
[1749179785658,0.89363351,2431.3,2431.2,9.1405]
[1749179787061,3.28377661,2432.8,2431.2,14.1405]
[1749179787257,0.82189,2432.5,2432.4,3.2078]
[1749179787458,0.82189,2432.5,2432.4,8.4698]
[1749179787663,0.82189,2432.5,2432.4,3.2078]
[1749179788068,0.82188,2432.6,2432.4,3.2078]
[1749179788767,2.10658,2432.6,2432.4,3.2078]
[1749179789162,0.82189,2432.5,2432.4,3.2078]
[1749179789356,2.10659,2432.5,2432.4,8.4688]
[1749179789968,0.82196,2432.3,2432.2,0.00617576]
[1749179790258,0.82194,2432.4,2432.2,0.00617576]
[1749179790458,0.82187,2432.6,2432.2,0.82815576]
[1749179790659,0.82187,2432.6,2432.5,3.2078]
[1749179791262,0.00617576,2432.7,2432.5,3.2078]
[1749179791263,0.82802576,2432.7,2432.5,3.2078]
[1749179791567,0.82186,2432.6,2432.5,3.2078]
[1749179792856,0.82196,2432.3,2432.2,5.26617576]
[1749179793069,0.82196,2432.3,2432.2,0.00617576]
[1749179793375,0.00617576,2432.7,2432.2,0.00617576]
[1749179793572,1.222477,2432.6,2432.2,0.00617576]
[1749179793870,0.00617576,2432.7,2432.6,0.82186]
[1749179794075,0.00617576,2432.7,2432.6,6.19786]
[1749179794277,0.00617576,2432.7,2432.6,8.10436]
[1749179795575,0.82161,2433.4,2432.6,12.2825]
[1749179795775,1.2991,2433.7,2432.6,12.2825]
[1749179795776,0.82162,2433.3,2433.2,3.2078]
[1749179799982,0.82162,2433.4,2433.2,3.2078]
[1749179800185,0.82163,2433.3,2433.2,3.2078]
[1749179803084,0.82162,2433.4,2433.2,4.02945]
[1749179803381,0.00617576,2433.5,2433.2,4.02945]
[1749179803382,0.00617576,2433.5,2433.4,0.82159]
[1749179803586,0.00617576,2433.5,2433.4,6.19559]
[1749179803783,0.82775576,2433.5,2433.3,0.6675]
[1749179803985,0.82775576,2433.5,2433.4,5.374]
[1749179804184,0.00617576,2433.5,2433.4,5.374]
[1749179804383,0.00617576,2433.5,2433.4,6.19559]
[1749179804978,0.00617576,2433.5,2433.4,5.374]
[1749179805388,0.00617576,2433.5,2433.4,6.19559]
[1749179805986,0.00617576,2433.5,2433.4,5.374]
[1749179806186,0.00617576,2433.5,2433.4,6.19559]
[1749179806386,0.00617576,2433.5,2433.4,5.374]
[1749179806585,0.00617576,2433.5,2433.4,6.19559]
[1749179807286,0.00617576,2433.5,2433.4,5.374]
[1749179807485,0.00617576,2433.5,2433.4,6.19559]
[1749179808185,0.82773576,2433.5,2433.4,5.374]
[1749179808983,0.00617576,2433.5,2433.4,6.19559]
[1749179809292,0.82773576,2433.5,2433.4,5.374]
[1749179809589,0.00617576,2433.5,2433.4,6.19559]
[1749179809790,0.82773576,2433.5,2433.4,5.374]
[1749179810093,0.07750927,2433.5,2433.4,9.40339]
[1749179810785,0.89906927,2433.5,2433.4,8.5818]
[1749179811985,0.89906927,2433.5,2433.4,9.40339]
[1749179812186,0.07750927,2433.5,2433.4,9.40339]
[1749179812386,0.89906927,2433.5,2433.4,8.5818]
[1749179813196,0.07750927,2433.5,2433.4,9.40339]
[1749179813998,0.89906927,2433.5,2433.4,8.5818]
[1749179814295,0.89906927,2433.5,2433.4,3.2078]
[1749179814494,0.89906927,2433.5,2433.4,9.40139]
[1749179814791,0.89906927,2433.5,2433.4,8.5798]
[1749179816392,0.07750927,2433.5,2433.4,9.40139]
[1749179817794,0.89906927,2433.5,2433.4,9.40139]
[1749179818297,0.07750927,2433.5,2433.4,9.40139]
[1749179820599,0.647,2434.0,2433.8,0.82146]
[1749179820801,1.46841,2434.0,2433.9,3.2078]
[1749179821102,2.69464264,2434.0,2433.9,3.2078]
[1749179823196,7.69464264,2434.0,2433.9,3.2078]
[1749179824498,2.69464264,2434.0,2433.9,3.2078]
[1749179824802,0.82146,2433.8,2433.7,0.00616295]
[1749179825103,2.04769264,2433.8,2433.7,0.00616295]
[1749179825597,2.73279264,2433.8,2433.7,0.00616295]
[1749179825798,2.74098309,2433.8,2433.7,0.00616295]
[1749179828798,1.91952309,2433.8,2433.7,0.00616295]
[1749179829101,2.74098309,2433.8,2433.7,0.00616295]
[1749179829298,1.91952309,2433.8,2433.7,0.82765295]
[1749179830301,1.23442309,2433.8,2433.7,0.82765295]
[1749179831206,1.23302319,2433.8,2433.7,0.82765295]
[1749179836102,0.07133351,2434.0,2433.9,0.82143]
[1749179836299,2.5756,2434.8,2434.0,2.05349]
[1749179836501,3.39675,2434.8,2434.7,3.2078]
[1749179836700,4.62505899,2434.8,2434.7,3.2078]
[1749179839509,4.6963925,2434.8,2434.7,3.2078]
[1749179841602,2.7780925,2434.8,2434.7,3.2078]
[1749179842607,0.30366827,2435.6,2434.7,3.2078]
[1749179842808,18.42132661,2436.1,2435.2,3.2078]
[1749179842809,0.82099,2435.3,2435.2,3.2078]
[1749179843008,1.9496,2435.4,2435.2,3.2078]
[1749179843207,2.82716,2435.3,2435.2,3.2078]
[1749179846120,0.82106,2435.0,2434.9,3.21396295]
[1749179851817,0.82106,2435.0,2434.9,0.00616295]
[1749179852215,0.82116,2434.7,2434.6,3.2078]
[1749179852613,0.82126,2434.4,2434.3,8.4818]
[1749179853327,0.82126,2434.4,2434.3,3.2078]
[1749179853720,2.83416,2434.4,2434.3,3.2078]
[1749179854426,0.6388,2434.5,2434.3,3.2078]
[1749179854622,0.89256351,2434.5,2434.3,4.02908]
[1749179854829,0.07133351,2434.5,2434.4,0.82126]
[1749179855624,0.82732024,2434.6,2434.4,0.82126]
[1749179856222,0.82125,2434.5,2434.3,5.36698]
[1749179857023,0.82734024,2434.6,2434.4,0.82126]
[1749179857718,0.82734024,2434.6,2434.5,0.6598]
[1749179859920,0.00612024,2434.6,2434.5,0.6598]
[1749179860522,0.00612024,2434.6,2434.5,1.48103]
[1749179860917,2.0101,2435.3,2434.5,6.48103]
[1749179861127,0.82102,2435.2,2435.0,4.02884]
[1749179861425,0.82102,2435.2,2435.1,5.193]
[1749179863221,0.6953,2435.3,2435.2,0.82099]
[1749179863423,2.0268,2435.8,2435.2,0.82099]
[1749179863617,0.82089,2435.5,2435.4,3.2078]
[1749179864222,1.316,2435.8,2435.4,3.2078]
[1749179864423,0.82088,2435.6,2435.5,5.193]
[1749179867231,0.6507,2435.8,2435.5,5.8458]
[1749179867431,1.47151,2435.8,2435.7,3.2078]
[1749179867726,2.68708047,2435.8,2435.7,3.2078]
[1749179867929,1.86627047,2435.8,2435.7,3.2078]
[1749179868123,1.47149,2435.8,2435.7,3.2078]
[1749179868329,0.6507,2435.8,2435.7,3.2078]
[1749179868529,1.47149,2435.8,2435.7,3.2078]
[1749179869832,1.54282351,2435.8,2435.7,3.2078]
[1749179870532,2.79107922,2435.8,2435.7,3.2078]
[1749179873930,2.79132814,2435.8,2435.7,3.2078]
[1749179877933,4.02254814,2435.8,2435.4,3.2078]
[1749179878132,0.82088,2435.5,2435.4,8.3998]
[1749179880738,0.82088,2435.5,2435.4,3.2078]
[1749179880936,0.82088,2435.5,2435.4,8.3998]
[1749179881138,0.82088,2435.5,2435.4,3.2078]
[1749179881335,2.06932284,2435.5,2435.4,3.2078]
[1749179881635,2.06932284,2435.5,2435.2,0.00616295]
[1749179881636,0.82094,2435.3,2435.2,0.00616295]
[1749179884935,2.07060524,2435.3,2435.2,0.00616295]
[1749179885240,6.57250524,2435.3,2435.2,0.00616295]
[1749179886142,6.64383875,2435.3,2435.2,0.00616295]
[1749179888138,6.64422658,2435.3,2435.2,0.00616295]
[1749179888338,3.43642658,2435.3,2435.2,0.00616295]
[1749179889348,6.64422658,2435.3,2435.2,0.00616295]
[1749179889542,11.64422658,2435.3,2435.2,0.00616295]
[1749179890343,0.82115,2434.7,2434.6,3.2078]
[1749179890543,2.07120307,2434.7,2434.6,3.2078]
[1749179892351,0.82121,2434.5,2434.4,0.00616295]
[1749179892545,2.07126307,2434.5,2434.4,0.00616295]
[1749179892941,3.99146307,2434.5,2434.4,0.00616295]
[1749179893451,0.00616295,2434.9,2434.4,8.21396295]
[1749179893653,0.82723295,2434.9,2434.8,3.2078]
[1749179894354,0.82723295,2434.9,2434.8,3.844]
[1749179895449,0.82723295,2434.9,2434.8,5.1128]
[1749179896050,0.00616295,2434.9,2434.8,5.1128]
[1749179896250,0.82724295,2434.9,2434.8,5.1128]
[1749179900346,0.89857646,2434.9,2434.8,5.1128]
[1749179906361,0.89857646,2434.9,2434.8,3.844]
[1749179908160,0.89857646,2434.9,2434.8,8.976]
[1749179908553,2.14958193,2434.9,2434.8,8.976]
[1749179908753,0.82114,2434.7,2434.6,5.132]
[1749179908958,2.07214547,2434.7,2434.6,5.132]
[1749179909664,0.82121,2434.5,2434.4,0.00616295]
[1749179910266,2.10516388,2434.5,2434.4,0.00616295]
[1749179910958,3.44336388,2434.5,2434.4,0.00616295]
[1749179912465,1.28395388,2434.5,2434.4,0.00616295]
[1749179913063,1.28395388,2434.5,2434.4,1.27046295]
[1749179913263,0.82117,2434.7,2434.4,6.27046295]
[1749179913464,0.82117,2434.7,2434.5,1.9497]
[1749179913963,0.82117,2434.7,2434.6,0.6308]
[1749179916466,2.10644411,2434.7,2434.6,5.7578]
[1749179918159,0.00616295,2434.9,2434.6,8.9656]
[1749179918365,0.82098,2435.3,2434.9,0.82106]
[1749179918662,0.82098,2435.2,2435.0,9.6287]
[1749179918862,0.82098,2435.2,2435.0,10.9088]
[1749179919058,0.6317,2435.5,2435.1,1.2801]
[1749179919257,0.82095,2435.3,2435.1,1.2801]
[1749179921361,0.82096,2435.3,2435.1,1.2801]
[1749179921669,4.7653,2435.6,2435.1,1.2801]
[1749179921868,1.358,2435.5,2435.1,1.2801]
[1749179922070,0.82098,2435.2,2435.1,1.2801]
[1749179922370,0.82101,2435.1,2435.0,9.6287]
[1749179922572,0.821,2435.2,2435.0,9.6287]
[1749179922767,0.82101,2435.1,2435.0,9.6287]
[1749179924275,0.821,2435.2,2435.0,9.6287]
[1749179924778,0.82101,2435.2,2435.0,9.6287]
[1749179925177,6.81747,2435.6,2435.0,9.6287]
[1749179925178,2.37836,2435.6,2435.0,14.6287]
[1749179925472,2.37836,2435.6,2435.1,3.2078]
[1749179925473,0.82098,2435.2,2435.1,3.2078]